lending/lending_fUSD_20250516
["ID","MTS","AMOUNT","RATE_DAILY","PERIOD"]
[361249813,1747392651716,-151.0,0.00016438,2]
[361249814,1747392651725,-400.0,0.00016438,2]
[361249815,1747392651734,-211.220886,0.00016438,2]
[361249816,1747392651744,-151.0,0.00016438,2]
[361249817,1747392651753,-828.5,0.00016438,2]
[361249818,1747392651762,-280.466088,0.00016438,2]
[361249819,1747392651771,-400.0,0.00016438,2]
[361249820,1747392651780,-400.0,0.00016438,2]
[361249821,1747392651789,-400.0,0.00016438,2]
[361249822,1747392651798,-400.0,0.00016438,2]
[361249823,1747392651808,-400.0,0.00016438,2]
[361249824,1747392651818,-465.8,0.00016438,2]
[361249825,1747392651827,-151.0,0.00016438,2]
[361249826,1747392651836,-151.0,0.00016438,2]
[361249827,1747392651846,-151.0,0.00016438,2]
[361249828,1747392651855,-220.12207339,0.00016438,2]
[361249829,1747392651864,-151.0,0.00016438,2]
[361249830,1747392651873,-151.0,0.00016438,2]
[361249831,1747392651882,-151.0,0.00016438,2]
[361249832,1747392651892,-536.11,0.00016438,2]
[361249833,1747392651902,-151.0,0.00016438,2]
[361249834,1747392651912,-400.0,0.00016438,2]
[361249835,1747392651921,-400.0,0.00016438,2]
[361249836,1747392651930,-151.0,0.00016438,2]
[361249837,1747392651940,-447.4,0.00016438,2]
[361249838,1747392651954,-151.0,0.00016438,2]
[361249839,1747392651964,-540.58,0.00016438,2]
[361249840,1747392651973,-500.0,0.00016438,2]
[361249841,1747392651983,-287.18,0.00016438,2]
[361249842,1747392651993,-400.0,0.00016438,2]
[361249843,1747392652003,-855.66,0.00016438,2]
[361249844,1747392652012,-400.0,0.00016438,2]
[361249845,1747392652022,-400.0,0.00016438,2]
[361249846,1747392652032,-503.94,0.00016438,2]
[361249847,1747392652041,-879.82,0.00016438,2]
[361249848,1747392652051,-2295.85,0.00016438,2]
[361249849,1747392652062,-400.0,0.00016438,2]
[361249850,1747392652071,-400.0,0.00016438,2]
[361249851,1747392652080,-400.0,0.00016438,2]
[361249852,1747392652090,-155.8087156,0.00016438,2]
[361249853,1747392652100,-729.48,0.00016438,2]
[361249854,1747392652110,-1445.81,0.00016438,2]
[361249855,1747392652120,-789.79,0.00016438,2]
[361249856,1747392652130,-400.0,0.00016438,2]
[361249857,1747392652140,-151.0,0.00016438,2]
[361249858,1747392652149,-1486.27,0.00016438,2]
[361249859,1747392652159,-400.0,0.00016438,2]
[361249860,1747392652169,-151.0,0.00016438,2]
[361249861,1747392652178,-151.0,0.00016438,2]
[361249862,1747392652188,-400.0,0.00016438,2]
[361249863,1747392652197,-583.83,0.00016438,2]
[361249864,1747392652207,-400.0,0.00016438,2]
[361249865,1747392652216,-400.0,0.00016438,2]
[361249866,1747392652225,-400.0,0.00016438,2]
[361249867,1747392652234,-400.0,0.00016438,2]
[361249868,1747392652244,-407.584875,0.00016438,2]
[361249869,1747392652253,-400.0,0.00016438,2]
[361249870,1747392652262,-407.584875,0.00016438,2]
[361249871,1747392652272,-407.584875,0.00016438,2]
[361249872,1747392652282,-613.55,0.00016438,2]
[361249873,1747392652291,-1335.17,0.00016438,2]
[361249874,1747392652300,-407.584875,0.00016438,2]
[361249875,1747392652313,-944.88,0.00016438,2]
[361249876,1747392652323,-407.584875,0.00016438,2]
[361249877,1747392652333,-407.584875,0.00016438,2]
[361249878,1747392652343,-400.0,0.00016438,2]
[361249879,1747392652352,-407.584875,0.00016438,2]
[361249880,1747392652362,-400.0,0.00016438,2]
[361249881,1747392652371,-407.584875,0.00016438,2]
[361249882,1747392652380,-400.0,0.00016438,2]
[361249883,1747392652390,-407.584875,0.00016438,2]
[361249884,1747392652399,-450.16,0.00016438,2]
[361249885,1747392652409,-407.584875,0.00016438,2]
[361249886,1747392652419,-511.81056662,0.00016438,2]
[361249887,1747392652429,-407.584875,0.00016438,2]
[361249888,1747392652440,-922.53,0.00016438,2]
[361249889,1747392652449,-1959.03,0.00016438,2]
[361249890,1747392652458,-407.584875,0.00016438,2]
[361249891,1747392652468,-400.0,0.00016438,2]
[361249892,1747392652478,-400.0,0.00016438,2]
[361249893,1747392652488,-407.584875,0.00016438,2]
[361249894,1747392652498,-407.584875,0.00016438,2]
[361249895,1747392652508,-400.0,0.00016438,2]
[361249896,1747392652517,-400.0,0.00016438,2]
[361249897,1747392652527,-407.584875,0.00016438,2]
[361249898,1747392652537,-1068.64,0.00016438,2]
[361249899,1747392652547,-459.85,0.00016438,2]
[361249900,1747392652559,-407.584875,0.00016438,2]
[361249901,1747392652569,-407.584875,0.00016438,2]
[361249902,1747392652579,-765.24,0.00016438,2]
[361249903,1747392652589,-407.584867,0.00016438,2]
[361249904,1747392652598,-1280.54,0.00016438,2]
[361249905,1747392652608,-400.0,0.00016438,2]
[361249906,1747392652617,-476.87,0.00016438,2]
[361249907,1747392652626,-400.0,0.00016438,2]
[361249908,1747392652636,-400.0,0.00016438,2]
[361249909,1747392652646,-400.0,0.00016438,2]
[361249910,1747392652656,-400.0,0.00016438,2]
[361249911,1747392652665,-151.0,0.00016438,2]
[361249912,1747392652675,-151.0,0.00016438,2]
[361249913,1747392652685,-151.0,0.00016438,2]
[361249914,1747392652696,-400.0,0.00016438,2]
[361249915,1747392652706,-158.977633,0.00016438,2]
[361249916,1747392652716,-400.08190485,0.00016438,2]
[361249917,1747392652726,-632.22,0.00016438,2]
[361249918,1747392652736,-420.93,0.00016438,2]
[361249919,1747392652747,-400.0,0.00016438,2]
[361249920,1747392652757,-400.0,0.00016438,2]
[361249921,1747392652768,-406.6474191,0.00016438,2]
[361249922,1747392652778,-451.46268639,0.00016438,2]
[361249923,1747392652789,-1032.99,0.00016438,2]
[361249924,1747392652799,-400.0,0.00016438,2]
[361249925,1747392652810,-151.0,0.00016438,2]
[361249926,1747392652821,-400.0,0.00016438,2]
[361249927,1747392652830,-400.0,0.00016438,2]
[361249928,1747392652841,-151.0,0.00016438,2]
[361249929,1747392652851,-400.0,0.00016438,2]
[361249930,1747392652861,-151.0,0.00016438,2]
[361249931,1747392652871,-151.0,0.00016438,2]
[361249932,1747392652882,-491.84,0.00016438,2]
[361249933,1747392652892,-151.0,0.00016438,2]
[361249934,1747392652901,-400.0,0.00016438,2]
[361249935,1747392652911,-151.0,0.00016438,2]
[361249936,1747392652922,-190.467528,0.00016438,2]
[361249937,1747392652933,-1353.0,0.00016438,2]
[361249938,1747392652944,-400.0,0.00016438,2]
[361249939,1747392652957,-401.8420495,0.00016438,2]
[361249940,1747392652968,-2844.14,0.00016438,2]
[361249941,1747392652979,-2844.14,0.00016438,2]
[361249942,1747392652989,-468.99,0.00016438,2]
[361249943,1747392652999,-2844.14,0.00016438,2]
[361249944,1747392653010,-2844.14,0.00016438,2]
[361249945,1747392653019,-2844.14,0.00016438,2]
[361249946,1747392653030,-2844.14,0.00016438,2]
[361249947,1747392653041,-2844.14,0.00016438,2]
[361249948,1747392653051,-2844.14,0.00016438,2]
[361249949,1747392653064,-203.77276396,0.00016438,2]
[361249950,1747392653074,-2844.14,0.00016438,2]
[361249951,1747392653085,-2844.14,0.00016438,2]
[361249952,1747392653095,-400.0,0.00016438,2]
[361249953,1747392653106,-400.0,0.00016438,2]
[361249954,1747392653117,-400.0,0.00016438,2]
[361249955,1747392653128,-400.0,0.00016438,2]
[361249956,1747392653138,-400.0,0.00016438,2]
[361249957,1747392653150,-632.31,0.00016438,2]
[361249958,1747392653161,-323.00903589,0.00016438,2]
[361249959,1747392653172,-400.0,0.00016438,2]
[361249960,1747392653182,-400.0,0.00016438,2]
[361249961,1747392653193,-400.0,0.00016438,2]
[361249962,1747392653204,-400.0,0.00016438,2]
[361249963,1747392653214,-400.0,0.00016438,2]
[361249964,1747392653224,-614.79,0.00016438,2]
[361249965,1747392653234,-713.44,0.00016438,2]
[361249966,1747392653244,-400.0,0.00016438,2]
[361249967,1747392653254,-400.0,0.00016438,2]
[361249968,1747392653264,-400.0,0.00016438,2]
[361249969,1747392653274,-400.0,0.00016438,2]
[361249970,1747392653284,-430.91,0.00016438,2]
[361249971,1747392653295,-400.0,0.00016438,2]
[361249972,1747392653305,-400.0,0.00016438,2]
[361249973,1747392653314,-400.0,0.00016438,2]
[361249974,1747392653324,-1222.7,0.00016438,2]
[361249975,1747392653334,-400.0,0.00016438,2]
[361249976,1747392653344,-400.0,0.00016438,2]
[361249977,1747392653354,-400.0,0.00016438,2]
[361249978,1747392653364,-400.0,0.00016438,2]
[361249979,1747392653375,-400.0,0.00016438,2]
[361249980,1747392653385,-502.13402603,0.00016438,2]
[361249981,1747392653395,-442.23,0.00016438,2]
[361249982,1747392653405,-400.0,0.00016438,2]
[361249983,1747392653415,-1579.22,0.00016438,2]
[361249984,1747392653425,-151.0,0.00016438,2]
[361249985,1747392653435,-151.0,0.00016438,2]
[361249986,1747392653444,-168.493596,0.00016438,2]
[361249987,1747392653457,-400.0,0.00016438,2]
[361249988,1747392653467,-400.0,0.00016438,2]
[361249989,1747392653477,-400.0,0.00016438,2]
[361249990,1747392653488,-400.0,0.00016438,2]
[361249991,1747392653498,-424.5111823,0.00016438,2]
[361249992,1747392653508,-400.0,0.00016438,2]
[361249993,1747392653518,-445.68,0.00016438,2]
[361249994,1747392653529,-1312.35,0.00016438,2]
[361249995,1747392653540,-400.0,0.00016438,2]
[361249996,1747392653550,-400.0,0.00016438,2]
[361249997,1747392653561,-349.42464539,0.00016438,2]
[361249998,1747392653571,-330.93742922,0.00016438,2]
[361249999,1747392653582,-470.53,0.00016438,2]
[361250000,1747392653592,-400.0,0.00016438,2]
[361250001,1747392653602,-400.0,0.00016438,2]
[361250002,1747392653613,-400.00000025,0.00016438,2]
[361250003,1747392653624,-400.0,0.00016438,2]
[361250004,1747392653634,-400.0,0.00016438,2]
[361250005,1747392653644,-400.0,0.00016438,2]
[361250006,1747392653655,-400.0,0.00016438,2]
[361250007,1747392653665,-400.0,0.00016438,2]
[361250008,1747392653675,-400.0,0.00016438,2]
[361250009,1747392653685,-400.0,0.00016438,2]
[361250010,1747392653695,-151.0,0.00016438,2]
[361250011,1747392653705,-151.0,0.00016438,2]
[361250012,1747392653715,-151.0,0.00016438,2]
[361250013,1747392653725,-151.0,0.00016438,2]
[361250014,1747392653735,-177.62029189,0.00016438,2]
[361250015,1747392653745,-627.25,0.00016438,2]
[361250016,1747392653755,-151.0,0.00016438,2]
[361250017,1747392653765,-400.0,0.00016438,2]
[361250018,1747392653775,-400.0,0.00016438,2]
[361250019,1747392653785,-151.0,0.00016438,2]
[361250020,1747392653794,-400.0,0.00016438,2]
[361250021,1747392653806,-1023.45,0.00016438,2]
[361250022,1747392653816,-151.0,0.00016438,2]
[361250023,1747392653826,-400.0,0.00016438,2]
[361250024,1747392653836,-537.01,0.00016438,2]
[361250025,1747392653847,-469.59,0.00016438,2]
[361250026,1747392653857,-400.0,0.00016438,2]
[361250027,1747392653867,-400.0,0.00016438,2]
[361250028,1747392653877,-400.0,0.00016438,2]
[361250029,1747392653887,-400.0,0.00016438,2]
[361250030,1747392653897,-1512.48,0.00016438,2]
[361250031,1747392653907,-400.0,0.00016438,2]
[361250032,1747392653918,-400.0,0.00016438,2]
[361250033,1747392653928,-1034.29,0.00016438,2]
[361250034,1747392653938,-400.0,0.00016438,2]
[361250035,1747392653950,-400.0,0.00016438,2]
[361250036,1747392653963,-400.0,0.00016438,2]
[361250037,1747392653974,-400.0,0.00016438,2]
[361250038,1747392653985,-1128.82,0.00016438,2]
[361250039,1747392653995,-400.0,0.00016438,2]
[361250040,1747392654006,-423.35,0.00016438,2]
[361250041,1747392654017,-400.0,0.00016438,2]
[361250042,1747392654028,-1288.56,0.00016438,2]
[361250043,1747392654038,-535.28,0.00016438,2]
[361250044,1747392654048,-400.0,0.00016438,2]
[361250045,1747392654059,-443.25,0.00016438,2]
[361250046,1747392654069,-502.93,0.00016438,2]
[361250047,1747392654079,-400.0,0.00016438,2]
[361250048,1747392654090,-400.0,0.00016438,2]
[361250049,1747392654100,-400.0,0.00016438,2]
[361250050,1747392654110,-400.0,0.00016438,2]
[361250051,1747392654121,-400.0,0.00016438,2]
[361250052,1747392654131,-1193.36,0.00016438,2]
[361250053,1747392654141,-400.0,0.00016438,2]
[361250054,1747392654151,-660.55,0.00016438,2]
[361250055,1747392654161,-157.10663031,0.00016438,2]
[361250056,1747392654171,-400.0,0.00016438,2]
[361250057,1747392654181,-552.36,0.00016438,2]
[361250058,1747392654191,-400.0,0.00016438,2]
[361250059,1747392654200,-873.85,0.00016438,2]
[361250060,1747392654210,-428.76,0.00016438,2]
[361250061,1747392654219,-689.99,0.00016438,2]
[361250062,1747392654229,-400.0,0.00016438,2]
[361250063,1747392654239,-776.21,0.00016438,2]
[361250064,1747392654249,-400.0,0.00016438,2]
[361250065,1747392654260,-662.1,0.00016438,2]
[361250066,1747392654271,-400.0,0.00016438,2]
[361250067,1747392654281,-400.0,0.00016438,2]
[361250068,1747392654291,-5890.08,0.00016438,2]
[361250069,1747392654302,-2147.45,0.00016438,2]
[361250070,1747392654314,-400.0,0.00016438,2]
[361250071,1747392654323,-623.39,0.00016438,2]
[361250072,1747392654334,-400.0,0.00016438,2]
[361250073,1747392654344,-400.0,0.00016438,2]
[361250074,1747392654354,-992.75,0.00016438,2]
[361250075,1747392654364,-748.11,0.00016438,2]
[361250076,1747392654374,-400.0,0.00016438,2]
[361250077,1747392654384,-400.0,0.00016438,2]
[361250078,1747392654394,-606.65,0.00016438,2]
[361250079,1747392654404,-400.0,0.00016438,2]
[361250080,1747392654414,-400.0,0.00016438,2]
[361250081,1747392654424,-400.0,0.00016438,2]
[361250082,1747392654434,-400.0,0.00016438,2]
[361250083,1747392654444,-400.0,0.00016438,2]
[361250084,1747392654455,-400.0,0.00016438,2]
[361250085,1747392654465,-400.0,0.00016438,2]
[361250086,1747392654475,-151.0,0.00016438,2]
[361250087,1747392654485,-1733.787931,0.00016438,2]
[361250088,1747392654495,-400.0,0.00016438,2]
[361250089,1747392654505,-151.0,0.00016438,2]
[361250090,1747392654515,-400.0,0.00016438,2]
[361250091,1747392654525,-733.83,0.00016438,2]
[361250092,1747392654535,-1733.787931,0.00016438,2]
[361250093,1747392654546,-151.0,0.00016438,2]
[361250094,1747392654557,-349.41580069,0.00016438,2]
[361250095,1747392654567,-151.0,0.00016438,2]
[361250096,1747392654577,-1733.787931,0.00016438,2]
[361250097,1747392654587,-271.226282,0.00016438,2]
[361250098,1747392654597,-1733.787931,0.00016438,2]
[361250099,1747392654607,-904.23,0.00016438,2]
[361250100,1747392654617,-1733.787931,0.00016438,2]
[361250101,1747392654627,-400.0,0.00016438,2]
[361250102,1747392654638,-1733.787931,0.00016438,2]
[361250103,1747392654648,-400.0,0.00016438,2]
[361250104,1747392654659,-1733.787931,0.00016438,2]
[361250105,1747392654670,-1733.787931,0.00016438,2]
[361250106,1747392654680,-400.0,0.00016438,2]
[361250107,1747392654691,-864.63,0.00016438,2]
[361250108,1747392654701,-445.6,0.00016438,2]
[361250109,1747392654712,-1733.787931,0.00016438,2]
[361250110,1747392654722,-400.0,0.00016438,2]
[361250111,1747392654733,-400.0,0.00016438,2]
[361250112,1747392654743,-1733.787931,0.00016438,2]
[361250113,1747392654753,-400.0,0.00016438,2]
[361250114,1747392654764,-1733.787931,0.00016438,2]
[361250115,1747392654774,-388.11501247,0.00016438,2]
[361250116,1747392654785,-1733.787931,0.00016438,2]
[361250117,1747392654795,-400.0,0.00016438,2]
[361250118,1747392654804,-400.0,0.00016438,2]
[361250119,1747392654818,-1733.787931,0.00016438,2]
[361250120,1747392654829,-1733.787931,0.00016438,2]
[361250121,1747392654840,-400.0,0.00016438,2]
[361250122,1747392654850,-1733.787931,0.00016438,2]
[361250123,1747392654860,-400.36663715,0.00016438,2]
[361250124,1747392654869,-1733.787931,0.00016438,2]
[361250125,1747392654879,-400.0,0.00016438,2]
[361250126,1747392654890,-917.61,0.00016438,2]
[361250127,1747392654900,-503.67238575,0.00016438,2]
[361250128,1747392654911,-2134.1,0.00016438,2]
[361250129,1747392654921,-992.15,0.00016438,2]
[361250130,1747392654932,-400.0,0.00016438,2]
[361250131,1747392654943,-400.0,0.00016438,2]
[361250132,1747392654956,-400.0,0.00016438,2]
[361250133,1747392654966,-400.0,0.00016438,2]
[361250134,1747392654977,-598.47,0.00016438,2]
[361250135,1747392654987,-400.42,0.00016438,2]
[361250136,1747392654999,-480.19,0.00016438,2]
[361250137,1747392655306,-430.66,0.00016438,2]
[361250138,1747392655329,-400.0,0.00016438,2]
[361250139,1747392655339,-2346.14,0.00016438,2]
[361250140,1747392655349,-400.0,0.00016438,2]
[361250141,1747392655358,-400.0,0.00016438,2]
[361250142,1747392655368,-400.0,0.00016438,2]
[361250143,1747392655377,-1074.11,0.00016438,2]
[361250144,1747392655387,-400.0,0.00016438,2]
[361250145,1747392655396,-547.36,0.00016438,2]
[361250146,1747392655406,-400.0,0.00016438,2]
[361250147,1747392655415,-410.94379726,0.00016438,2]
[361250148,1747392655425,-585.32,0.00016438,2]
[361250149,1747392655434,-764.26,0.00016438,2]
[361250150,1747392655444,-1256.75,0.00016438,2]
[361250151,1747392655453,-400.0,0.00016438,2]
[361250152,1747392655463,-1256.75,0.00016438,2]
[361250153,1747392655473,-400.0,0.00016438,2]
[361250154,1747392655482,-1256.75,0.00016438,2]
[361250155,1747392655492,-2294.46,0.00016438,2]
[361250156,1747392655502,-400.0,0.00016438,2]
[361250157,1747392655511,-400.0,0.00016438,2]
[361250158,1747392655521,-1256.75,0.00016438,2]
[361250159,1747392655531,-280.7717078,0.00016438,2]
[361250160,1747392655541,-1256.75,0.00016438,2]
[361250161,1747392655551,-1256.75,0.00016438,2]
[361250162,1747392655561,-1256.75,0.00016438,2]
[361250163,1747392655571,-1256.75,0.00016438,2]
[361250164,1747392655580,-400.0,0.00016438,2]
[361250165,1747392655590,-1256.75,0.00016438,2]
[361250166,1747392655599,-400.0,0.00016438,2]
[361250167,1747392655610,-1256.75,0.00016438,2]
[361250168,1747392655620,-1256.75,0.00016438,2]
[361250169,1747392655630,-1256.75,0.00016438,2]
[361250170,1747392655640,-985.84,0.00016438,2]
[361250171,1747392655650,-1532.0,0.00016438,2]
[361250172,1747392655660,-400.0,0.00016438,2]
[361250173,1747392655670,-1256.75,0.00016438,2]
[361250174,1747392655681,-182.91253806,0.00016438,2]
[361250175,1747392655692,-400.0,0.00016438,2]
[361250176,1747392655703,-400.0,0.00016438,2]
[361250177,1747392655713,-2315.34,0.00016438,2]
[361250178,1747392655724,-400.0,0.00016438,2]
[361250179,1747392655733,-253.635045,0.00016438,2]
[361250180,1747392655743,-400.0,0.00016438,2]
[361250181,1747392655753,-253.635045,0.00016438,2]
[361250182,1747392655764,-253.635045,0.00016438,2]
[361250183,1747392655775,-253.635045,0.00016438,2]
[361250184,1747392655785,-1079.07,0.00016438,2]
[361250185,1747392655795,-400.0,0.00016438,2]
[361250186,1747392655806,-400.0,0.00016438,2]
[361250187,1747392655816,-253.635045,0.00016438,2]
[361250188,1747392655826,-253.635045,0.00016438,2]
[361250189,1747392655836,-253.635045,0.00016438,2]
[361250190,1747392655846,-400.0,0.00016438,2]
[361250191,1747392655856,-1310.24,0.00016438,2]
[361250192,1747392655865,-253.635045,0.00016438,2]
[361250193,1747392655874,-253.635045,0.00016438,2]
[361250194,1747392655884,-253.635045,0.00016438,2]
[361250195,1747392655893,-400.0,0.00016438,2]
[361250196,1747392655903,-6830.93,0.00016438,2]
[361250197,1747392655914,-909.7,0.00016438,2]
[361250198,1747392655924,-253.635045,0.00016438,2]
[361250199,1747392655933,-400.0,0.00016438,2]
[361250200,1747392655943,-253.635045,0.00016438,2]
[361250201,1747392655955,-453.0,0.00016438,2]
[361250202,1747392655964,-253.635045,0.00016438,2]
[361250203,1747392655974,-400.0,0.00016438,2]
[361250204,1747392655983,-253.635045,0.00016438,2]
[361250205,1747392655992,-400.0,0.00016438,2]
[361250206,1747392656003,-253.635045,0.00016438,2]
[361250207,1747392656012,-400.0,0.00016438,2]
[361250208,1747392656022,-253.635045,0.00016438,2]
[361250209,1747392656032,-400.0,0.00016438,2]
[361250210,1747392656042,-253.635045,0.00016438,2]
[361250211,1747392656052,-453.13,0.00016438,2]
[361250212,1747392656063,-253.635045,0.00016438,2]
[361250213,1747392656073,-400.0,0.00016438,2]
[361250214,1747392656082,-400.0,0.00016438,2]
[361250215,1747392656092,-400.0,0.00016438,2]
[361250216,1747392656103,-400.0,0.00016438,2]
[361250217,1747392656113,-1463.47,0.00016438,2]
[361250218,1747392656124,-400.0,0.00016438,2]
[361250219,1747392656134,-349.77995513,0.00016438,2]
[361250220,1747392656144,-400.0,0.00016438,2]
[361250221,1747392656153,-504.96980799,0.00016438,2]
[361250222,1747392656163,-400.0,0.00016438,2]
[361250223,1747392656174,-1280.5,0.00016438,2]
[361250224,1747392656183,-1634.79,0.00016438,2]
[361250225,1747392656192,-2102.11,0.00016438,2]
[361250226,1747392656202,-6780.33,0.00016438,2]
[361250227,1747392656212,-400.0,0.00016438,2]
[361250228,1747392656221,-1161.51,0.00016438,2]
[361250229,1747392656231,-816.95,0.00016438,2]
[361250230,1747392656241,-400.0,0.00016438,2]
[361250231,1747392656251,-475.61,0.00016438,2]
[361250232,1747392656261,-13241.24,0.00016438,2]
[361250233,1747392656271,-606.73,0.00016438,2]
[361250234,1747392656280,-400.0,0.00016438,2]
[361250235,1747392656290,-1584.77,0.00016438,2]
[361250236,1747392656300,-412.66743275,0.00016438,2]
[361250237,1747392656311,-400.0,0.00016438,2]
[361250238,1747392656321,-400.0,0.00016438,2]
[361250239,1747392656330,-400.0,0.00016438,2]
[361250240,1747392656340,-3910.14,0.00016438,2]
[361250241,1747392656350,-9005.49,0.00016438,2]
[361250242,1747392656359,-1438.84,0.00016438,2]
[361250243,1747392656369,-400.0,0.00016438,2]
[361250244,1747392656378,-400.0,0.00016438,2]
[361250245,1747392656387,-400.0,0.00016438,2]
[361250246,1747392656397,-8060.28,0.00016438,2]
[361250247,1747392656406,-400.0,0.00016438,2]
[361250248,1747392656416,-2684.47,0.00016438,2]
[361250249,1747392656426,-400.0,0.00016438,2]
[361250250,1747392656436,-400.0,0.00016438,2]
[361250251,1747392656445,-15966.67,0.00016438,2]
[361250252,1747392656455,-401.26352473,0.00016438,2]
[361250253,1747392656464,-547.55,0.00016438,2]
[361250254,1747392656474,-703.51,0.00016438,2]
[361250255,1747392656484,-400.0,0.00016438,2]
[361250256,1747392656493,-421.265841,0.00016438,2]
[361250257,1747392656504,-400.0,0.00016438,2]
[361250258,1747392656513,-1050.83,0.00016438,2]
[361250259,1747392656523,-421.265841,0.00016438,2]
[361250260,1747392656533,-400.0,0.00016438,2]
[361250261,1747392656542,-421.265841,0.00016438,2]
[361250262,1747392656551,-400.0,0.00016438,2]
[361250263,1747392656563,-400.0,0.00016438,2]
[361250264,1747392656573,-421.265841,0.00016438,2]
[361250265,1747392656583,-2738.02,0.00016438,2]
[361250266,1747392656592,-421.265841,0.00016438,2]
[361250267,1747392656602,-329.33,0.00016438,2]
[361250268,1747392656612,-421.265841,0.00016438,2]
[361250269,1747392656622,-400.0,0.00016438,2]
[361250270,1747392656631,-421.265841,0.00016438,2]
[361250271,1747392656641,-400.0,0.00016438,2]
[361250272,1747392656651,-421.265841,0.00016438,2]
[361250273,1747392656662,-515.87,0.00016438,2]
[361250274,1747392656672,-421.265841,0.00016438,2]
[361250275,1747392656681,-400.0,0.00016438,2]
[361250276,1747392656691,-400.0,0.00016438,2]
[361250277,1747392656700,-4302.55,0.00016438,2]
[361250278,1747392656710,-421.265841,0.00016438,2]
[361250279,1747392656719,-421.265841,0.00016438,2]
[361250280,1747392656729,-421.265841,0.00016438,2]
[361250281,1747392656739,-423.41,0.00016438,2]
[361250282,1747392656749,-421.265841,0.00016438,2]
[361250283,1747392656759,-400.0,0.00016438,2]
[361250284,1747392656769,-400.0,0.00016438,2]
[361250285,1747392656778,-421.265841,0.00016438,2]
[361250286,1747392656787,-400.0,0.00016438,2]
[361250287,1747392656797,-3215.02,0.00016438,2]
[361250288,1747392656806,-923.62,0.00016438,2]
[361250289,1747392656816,-421.265841,0.00016438,2]
[361250290,1747392656825,-421.265841,0.00016438,2]
[361250291,1747392656834,-421.265841,0.00016438,2]
[361250292,1747392656843,-400.0,0.00016438,2]
[361250293,1747392656853,-444.74,0.00016438,2]
[361250294,1747392656862,-421.265841,0.00016438,2]
[361250295,1747392656870,-400.0,0.00016438,2]
[361250296,1747392656879,-400.0,0.00016438,2]
[361250297,1747392656888,-417.25,0.00016438,2]
[361250298,1747392656897,-1751.99,0.00016438,2]
[361250299,1747392656906,-934.22,0.00016438,2]
[361250300,1747392656915,-2144.12,0.00016438,2]
[361250301,1747392656924,-400.0,0.00016438,2]
[361250302,1747392656933,-1305.25,0.00016438,2]
[361250303,1747392656942,-406.99911292,0.00016438,2]
[361250304,1747392656953,-400.0,0.00016438,2]
[361250305,1747392656963,-400.0,0.00016438,2]
[361250306,1747392656972,-402.55713806,0.00016438,2]
[361250307,1747392656982,-662.72,0.00016438,2]
[361250308,1747392656991,-500.9532198,0.00016438,2]
[361250309,1747392657002,-741.83,0.00016438,2]
[361250310,1747392657011,-400.0,0.00016438,2]
[361250311,1747392657021,-400.0,0.00016438,2]
[361250312,1747392657032,-6913.18,0.00016438,2]